fUSD/lending_fUSD_20240201
["ID","MTS","AMOUNT","RATE_DAILY","PERIOD"]
[313121235,1706773847967,-500.0,0.00031362,2]
[313121236,1706773847976,-2751.48,0.00031362,2]
[313121237,1706773847985,-611.73,0.00031362,2]
[313121238,1706773847994,-500.0,0.00031362,2]
[313121239,1706773848005,-1156.88,0.00031362,2]
[313121240,1706773848014,-500.0,0.00031362,2]
[313121241,1706773848023,-500.0,0.00031362,2]
[313121242,1706773848032,-500.0,0.00031362,2]
[313121243,1706773848041,-1048.95,0.00031362,2]
[313121244,1706773848050,-500.0,0.00031362,2]
[313121245,1706773848059,-500.0,0.00031362,2]
[313121246,1706773848068,-500.0,0.00031362,2]
[313121247,1706773848078,-534.34158102,0.00031362,2]
[313121248,1706773848088,-500.0,0.00031362,2]
[313121249,1706773848097,-500.0,0.00031362,2]
[313121250,1706773848106,-4652.75,0.00031362,2]
[313121251,1706773848116,-500.0,0.00031362,2]
[313121252,1706773848125,-500.0,0.00031362,2]
[313121253,1706773848134,-672.72,0.00031362,2]
[313121254,1706773848143,-500.0,0.00031362,2]
[313121255,1706773848152,-500.0,0.00031362,2]
[313121256,1706773848162,-500.0,0.00031362,2]
[313121257,1706773848172,-500.0,0.00031362,2]
[313121258,1706773848183,-500.0,0.00031362,2]
[313121259,1706773848192,-1291.18,0.00031362,2]
[313121260,1706773848203,-500.0,0.00031362,2]
[313121261,1706773848212,-610.46,0.00031362,2]
[313121263,1706773848221,-57.87358732,0.00031362,2]
[313121264,1706773848235,-442.12641268,0.00031362,2]
[313121265,1706773848244,-458.02405595,0.00031362,2]
[313121266,1706773848256,-41.97594405,0.00031362,2]
[313121267,1706773848265,-508.27539256,0.00031362,7]
[313121268,1706773848283,-491.72460744,0.00031362,7]
[313121269,1706773848292,-23.87136289,0.00031362,2]
[313121270,1706773848304,-476.12863711,0.00031362,2]
[313121271,1706773848314,-130.87136289,0.00031362,2]
[313121272,1706773848325,-369.12863711,0.00031362,2]
[313121273,1706773848334,-614.14,0.00031362,2]
[313121274,1706773848343,-93.84963583,0.00031362,2]
[313121275,1706773848422,-1101.33036417,0.00031362,2]
[313121276,1706773848431,-733.39,0.00031362,2]
[313121277,1706773848441,-573.04,0.00031362,2]
[313121278,1706773848451,-565.48,0.00031362,2]
[313121279,1706773848462,-1016.48445512,0.00031362,7]
[313121280,1706773848471,-500.0,0.00031362,2]
[313121281,1706773848480,-524.09,0.00031362,2]
[313121282,1706773848489,-500.0,0.00031362,2]
[313121283,1706773848500,-500.0,0.00031362,2]
[313121284,1706773848509,-346.4126038,0.00031362,2]
[313121285,1706773848521,-153.5873962,0.00031362,2]
[313121286,1706773848530,-500.0,0.00031362,2]
[313121287,1706773848538,-500.0,0.00031362,2]
[313121288,1706773848546,-674.95,0.00031362,2]
[313121289,1706773848554,-211.12290467,0.00031362,2]
[313121290,1706773848563,-500.0,0.00031362,2]
[313121291,1706773848572,-500.0,0.00031362,2]
[313121292,1706773848582,-651.98,0.00031362,2]
[313121293,1706773848591,-500.0,0.00031362,2]
[313121294,1706773848600,-500.0,0.00031362,2]
[313121295,1706773848609,-500.0,0.00031362,2]
[313121296,1706773848618,-1138.84,0.00031362,2]
[313121297,1706773848628,-264.04463148,0.00031362,2]
[313121298,1706773848640,-459.51536852,0.00031362,2]
[313121299,1706773848648,-591.84678949,0.00031362,2]
[313121300,1706773848657,-668.13,0.00031362,2]
[313121301,1706773848666,-518.68,0.00031362,2]
[313121302,1706773848676,-500.0,0.00031362,2]
[313121303,1706773848685,-500.0,0.00031362,2]
[313121304,1706773848695,-2229.95,0.00031362,5]
[313121305,1706773848705,-14296.02258506,0.00031362,2]
[313121306,1706773848717,-1809.10741494,0.00031362,2]
[313121307,1706773848726,-500.0,0.00031362,2]
[313121308,1706773848735,-500.0,0.00031362,2]
[313121309,1706773848744,-500.0,0.00031362,2]
[313121310,1706773848757,-637.98,0.00031362,2]
[313121311,1706773848766,-1300.82,0.00031362,2]
[313121312,1706773848775,-839.88,0.00031362,2]
[313121313,1706773848784,-500.0,0.00031362,2]
[313121314,1706773848793,-2420.89,0.00031362,2]
[313121315,1706773848803,-574.31,0.00031362,2]
[313121316,1706773848812,-500.0,0.00031362,2]
[313121317,1706773848821,-613.25,0.00031362,2]
[313121318,1706773848832,-518.77,0.00031362,2]
[313121319,1706773848840,-4038.56459205,0.00031362,2]
[313121320,1706773848849,-4559.10361875,0.00031363,2]
[313121321,1706773848862,-1074.58314846,0.00031363,2]
[313121322,1706773848870,-500.0,0.00031363,2]
[313121323,1706773848880,-284.77485118,0.00031363,2]
[313121324,1706773848892,-231.34391202,0.00031363,2]
[313121325,1706773848903,-508.98265333,0.00031363,2]
[313121326,1706773848913,-500.0,0.00031363,2]
[313121327,1706773848922,-572.4669567,0.00031363,2]
[313121328,1706773848932,-500.0,0.00031363,2]
[313121329,1706773848942,-523.56007252,0.00031363,2]
[313121330,1706773848951,-500.0,0.00031363,2]
[313121331,1706773848960,-515.00948955,0.00031363,2]
[313121332,1706773848969,-1000.0,0.00031363,7]
[313121333,1706773848980,-400.03286693,0.00031363,2]
[313121334,1706773848991,-602.4628144,0.00031363,2]
[313121335,1706773849001,-513.66663881,0.00031363,2]
[313121336,1706773849010,-616.3111488,0.00031363,2]
[313121337,1706773849019,-521.96108107,0.00031363,2]
[313121338,1706773849028,-556.52144209,0.00031363,2]
[313121339,1706773849038,-429.48618429,0.00031363,10]
[313121340,1706773849051,-70.51381571,0.00031363,10]
[313121341,1706773849061,-340.341616,0.00031363,2]
[313121342,1706773849074,-161.09626472,0.00031363,2]
[313121343,1706773849084,-524.84733524,0.00031363,2]
[313121344,1706773849093,-507.95887125,0.00031363,2]
[313121345,1706773849104,-644.64066485,0.00031363,2]
[313121346,1706773849113,-547.87049903,0.00031363,2]
[313121347,1706773849125,-510.47161292,0.00031363,2]
[313121348,1706773849135,-542.06185033,0.00031363,2]
[313121349,1706773849144,-309.48559253,0.00031363,2]
[313121350,1706773849153,-512.97955622,0.00031363,2]
[313121351,1706773849162,-500.0,0.00031363,2]
[313121352,1706773849171,-560.52879056,0.00031363,2]
[313121353,1706773849181,-519.58653756,0.00031363,2]
[313121354,1706773849191,-574.9062427,0.00031363,2]
[313121355,1706773849200,-553.03831461,0.00031363,2]
[313121356,1706773849209,-300.29955013,0.00031363,2]
[313121357,1706773849218,-150.12084518,0.00031363,2]
[313121358,1706773849229,-399.30845575,0.00031363,2]
[313121359,1706773849237,-550.8637824,0.00031363,2]
[313121360,1706773849246,-562.37109157,0.00031363,2]
[313121361,1706773849256,-505.56209072,0.00031363,2]
[313121362,1706773849266,-523.29235837,0.00031363,2]
[313121363,1706773849276,-533.40958161,0.00031363,2]
[313121364,1706773849285,-500.0,0.00031363,2]
[313121365,1706773849294,-313.04508075,0.00031363,2]
[313121366,1706773849303,-3000.0,0.00031363,2]
[313121367,1706773849312,-440.6821367,0.00031363,2]
[313121368,1706773849322,-524.32621186,0.00031397,2]
[313121369,1706773849332,-500.0,0.00031399,2]
[313121370,1706773849342,-1000.00000952,0.00031399,2]
[313121371,1706773849352,-24072.04805485,0.000314,2]
[313121372,1706773849364,-28450.94655559,0.000314,2]
[313121373,1706773849377,-11326.26027201,0.000314,2]
[313121374,1706773849388,-1713.60714684,0.000314,2]
[313121387,1706774164994,446.7859,0.000229,2]
[313121401,1706774201131,803.06654343,0.000229,2]
[313121402,1706774201151,2000.0,0.000229,2]
[313121419,1706774379324,1823.2,0.00022306,2]
[313121420,1706774379344,659.41420704,0.00022306,2]
[313121423,1706774399205,852.29335268,0.00022306,2]
[313121425,1706774955081,488.29244028,0.00022542,2]
[313121426,1706774955104,2000.0,0.00022542,2]
[313121427,1706774955125,2000.0,0.00022542,2]
[313121441,1706775032167,-282.21611749,0.00022538,2]
[313121442,1706775032177,-292.94029215,0.00022539,2]
[313121443,1706775032186,-245.62414662,0.00022539,2]
[313121444,1706775032195,-232.71535668,0.0002254,2]
[313121445,1706775032206,-264.26959514,0.0002254,2]
[313121446,1706775032217,-308.5094613,0.0002254,2]
[313121447,1706775032260,-76.18631628,0.0002254,2]
[313121448,1706775032269,-243.18075265,0.0002254,2]
[313121449,1706775032278,-260.93542581,0.0002254,2]
[313121450,1706775032287,-1590.14750526,0.00022541,2]
[313121451,1706775032298,-909.03570238,0.00022541,2]
[313121452,1706775032319,-16553.8437943,0.00022541,2]
[313121453,1706775032328,-12887.70755972,0.00022542,2]
[313121454,1706775032338,-496.18273898,0.00022766,2]
[313121455,1706775032347,-194.71200086,0.000228,2]
[313121456,1706775032356,-4729.45935657,0.000229,2]
[313121457,1706775032365,-561.75593546,0.000229,2]
[313121458,1706775032374,-400.0,0.000229,8]
[313121459,1706775032383,-1368.6780526,0.00022973,2]
[313121460,1706775032392,-215.84825104,0.00022976,2]
[313121461,1706775032401,-525.73205245,0.00022997,2]
[313121462,1706775032411,-496.61,0.00022997,2]
[313121463,1706775032420,-167.0973122,0.00022998,2]
[313121464,1706775032430,-306.09257275,0.00022998,2]
[313121465,1706775032439,-344.52133117,0.00022998,2]
[313121466,1706775032448,-2462.9556164,0.00022998,2]
[313121468,1706775032458,-289.31995548,0.00022998,2]
[313121470,1706775032467,-265.79545857,0.00022998,2]
[313121472,1706775032476,-3160.98074311,0.00022998,2]
[313121474,1706775032485,-265.60593895,0.00022998,2]
[313121476,1706775032494,-285.80236375,0.00022998,2]
[313121478,1706775032506,-535.34248921,0.00022998,2]
[313121480,1706775032515,-247.74466246,0.00022998,2]
[313121482,1706775032524,-73907.9618549,0.00022998,2]
[313121484,1706775032533,-989.26902615,0.00022998,2]
[313121486,1706775032542,-499.99,0.00022998,2]
[313121488,1706775032551,-236.88969083,0.00022999,2]
[313121490,1706775032560,-250.61429787,0.00022999,2]
[313121492,1706775032569,-233.46806501,0.00022999,2]
[313121494,1706775032578,-246.98948582,0.00022999,2]
[313121496,1706775032587,-22649.53666211,0.00023,2]
[313121518,1706775032866,-1266.75800943,0.00023,2]
[313121523,1706775032990,-2856.3,0.00023,2]
[313121524,1706775033001,-285.0,0.00023,2]
[313121529,1706775038155,-2971.93197188,0.00023,2]
[313121530,1706775038166,-221137.48526665,0.00023,2]
[313121531,1706775038178,-725.81563912,0.00023,2]
[313121532,1706775038190,-741.27723955,0.00023,2]
[313121533,1706775038203,-420.8888349,0.00023,2]
[313121534,1706775038221,-780.54963514,0.00023,2]
[313121535,1706775038273,-2182.54665798,0.00023,2]
[313121536,1706775038284,-608.0627175,0.00023,2]
[313121537,1706775038295,-653.67901261,0.00023,2]
[313121538,1706775038330,-4251.41490306,0.00023,2]
[313121539,1706775038345,-363.25872601,0.00023,2]
[313121540,1706775038391,-965.70866528,0.00023,2]
[313121541,1706775038404,-261.6596807,0.00023,2]
[313121542,1706775038415,-1012.572,0.00023,2]
[313121543,1706775038444,-4383.31747634,0.00023,2]
[313121544,1706775038502,-2125.0,0.00023,2]
[313121556,1706775040674,-744.70200615,0.00023,2]
[313121557,1706775040686,-350.55781886,0.00023,2]
[313121558,1706775040697,-4403.34134232,0.00023,2]
[313121559,1706775040714,-321.76073503,0.00023,2]
[313121560,1706775040727,-557.57111248,0.00023,2]
[313121561,1706775040749,-606.54717402,0.00023,2]
[313121562,1706775040900,-954.45,0.00023,2]
[313121563,1706775041518,-106076.71102668,0.00023,2]
[313121564,1706775041527,-207952.16761934,0.00023,2]
[313121565,1706775041539,-106635.42193766,0.00023,2]
[313121566,1706775041551,-613.46221154,0.00023,2]
[313121567,1706775041562,-2789.2038977,0.00023,2]
[313121568,1706775041575,-260.54,0.00023,2]
[313121583,1706775043343,-1830.39466394,0.00023,2]
[313121584,1706775043358,-85524.0973146,0.00023,2]
[313121585,1706775043368,-205.36347833,0.00023017,2]
[313121586,1706775043377,-303.04,0.00023117,2]
[313121587,1706775043387,-7898.41839423,0.0002313,2]
[313121588,1706775043396,-250.0,0.00023287,2]
[313121589,1706775043407,-159.77,0.00023876,2]
[313121590,1706775043416,-151.86,0.00023988,2]
[313121591,1706775043425,-155.5244494,0.000241,2]
[313121592,1706775043434,-638.95,0.00024137,2]
[313121593,1706775043443,-159.77,0.00024187,2]
[313121594,1706775043452,-159.77,0.00024498,2]
[313121595,1706775043474,-286.44,0.00024567,2]
[313121596,1706775043484,-250.0,0.00024658,2]
[313121597,1706775043493,-159.77,0.00024809,2]
[313121598,1706775043503,-659.71,0.00024937,2]
[313121599,1706775043513,-561.75593543,0.00024957,2]
[313121600,1706775043523,-866.37,0.00025035,2]
[313121601,1706775043533,-159.77,0.0002512,2]
[313121602,1706775043542,-303.04,0.00025381,2]
[313121603,1706775043551,-150.0,0.00026079,2]
[313121604,1706775043561,-866.37,0.00026679,2]
[313121605,1706775043571,-194.71200086,0.00026692,2]
[313121606,1706775043580,-800.0,0.000269,9]
[313121607,1706775043590,-561.75593543,0.00027014,2]
[313121608,1706775043600,-154.55297837,0.00027297,2]
[313121609,1706775043609,-500.0,0.00027397,2]
[313121610,1706775043619,-500.0,0.00027397,2]
[313121611,1706775043628,-659.39,0.00027397,2]
[313121612,1706775043638,-882.78,0.00027397,2]
[313121613,1706775043647,-500.0,0.00027397,2]
[313121614,1706775043657,-500.0,0.00027397,2]
[313121615,1706775043666,-500.0,0.00027397,2]
[313121616,1706775043676,-993.93,0.00027397,7]
[313121617,1706775043685,-500.0,0.00027397,2]
[313121618,1706775043695,-500.0,0.00027397,2]
[313121619,1706775043704,-500.0,0.00027397,2]
[313121620,1706775043714,-500.0,0.00027397,2]
[313121621,1706775043724,-500.0,0.00027397,2]
[313121622,1706775043733,-500.0,0.00027397,2]
[313121623,1706775043743,-500.0,0.00027397,2]
[313121624,1706775043752,-500.0,0.00027397,2]
[313121625,1706775043762,-500.0,0.00027397,2]
[313121626,1706775043771,-500.0,0.00027397,2]
[313121627,1706775043781,-500.0,0.00027397,2]
[313121628,1706775043791,-567.48855966,0.00027397,2]
[313121629,1706775043801,-500.0,0.00027397,2]
[313121630,1706775043811,-450.0,0.00027397,2]
[313121631,1706775043820,-500.0,0.00027397,2]
[313121632,1706775043829,-500.0,0.00027397,2]
[313121633,1706775043839,-500.0,0.00027397,2]
[313121634,1706775043848,-500.0,0.00027397,2]
[313121635,1706775043858,-500.0,0.00027397,2]
[313121636,1706775043867,-500.0,0.00027397,2]
[313121637,1706775043877,-500.0,0.00027397,2]
[313121638,1706775043886,-500.0,0.00027397,2]
[313121639,1706775043895,-529.4,0.00027397,2]
[313121640,1706775043904,-847.23,0.00027397,2]
[313121641,1706775043914,-500.0,0.00027397,2]
[313121642,1706775043923,-500.0,0.00027397,2]
[313121643,1706775043932,-500.0,0.00027397,2]
[313121644,1706775043942,-150.0,0.00027397,2]
[313121645,1706775043951,-500.0,0.00027397,2]
[313121646,1706775043961,-500.0,0.00027397,2]
[313121647,1706775043974,-500.0,0.00027397,2]
[313121648,1706775043984,-500.0,0.00027397,2]
[313121649,1706775043993,-500.0,0.00027397,2]
[313121650,1706775044003,-500.0,0.00027397,2]
[313121651,1706775044012,-152.53793988,0.00027397,2]
[313121652,1706775044022,-500.0,0.00027397,2]
[313121653,1706775044031,-500.0,0.00027397,2]
[313121654,1706775044042,-500.0,0.00027397,2]
[313121655,1706775044051,-500.0,0.00027397,2]
[313121656,1706775044060,-500.0,0.00027397,2]
[313121657,1706775044071,-500.0,0.00027397,2]
[313121658,1706775044081,-500.0,0.00027397,2]
[313121659,1706775044092,-500.0,0.00027397,2]
[313121660,1706775044101,-427.22800297,0.00027397,2]
[313121661,1706775044111,-500.0,0.00027397,2]
[313121662,1706775044124,-500.0,0.00027397,2]
[313121663,1706775044133,-500.0,0.00027397,2]
[313121664,1706775044143,-500.0,0.00027397,2]
[313121665,1706775044152,-500.0,0.00027397,2]
[313121666,1706775044162,-520.11811677,0.00027397,2]
[313121667,1706775044173,-516.1187632,0.00027397,2]
[313121668,1706775044183,-500.0,0.00027397,2]
[313121669,1706775044192,-512.2,0.00027397,2]
[313121670,1706775044203,-500.0,0.00027397,2]
[313121671,1706775044212,-635.14175743,0.00027397,2]
[313121672,1706775044223,-537.44654605,0.00027397,2]
[313121674,1706775044232,-508.98265333,0.00027397,2]
[313121676,1706775044241,-228.1354618,0.00027397,2]
[313121677,1706775044250,-500.0,0.00027397,2]
[313121678,1706775044260,-500.0,0.00027397,2]
[313121679,1706775044270,-500.0,0.00027397,2]
[313121680,1706775044280,-500.0,0.00027397,2]
[313121682,1706775044289,-500.0,0.00027397,2]
[313121683,1706775044298,-1266.7,0.00027397,2]
[313121684,1706775044312,-500.0,0.00027397,2]
[313121685,1706775044321,-508.43526087,0.00027397,2]
[313121686,1706775044330,-500.0,0.00027397,2]
[313121687,1706775044340,-216.58770509,0.00027397,2]
[313121688,1706775044349,-500.0,0.00027397,2]
[313121689,1706775044358,-572.4669567,0.00027397,2]
[313121690,1706775044367,-500.0,0.00027397,2]
[313121691,1706775044377,-371.3426691,0.00027397,2]
[313121692,1706775044386,-738.71,0.00027397,2]
[313121693,1706775044396,-525.85274583,0.00027397,2]
[313121694,1706775044405,-500.0,0.00027397,2]
[313121695,1706775044415,-220.56935443,0.00027397,2]
[313121696,1706775044424,-518.22005317,0.00027397,2]
[313121697,1706775044433,-777.69,0.00027397,2]
[313121698,1706775044443,-1017.54,0.00027397,2]
[313121699,1706775044452,-500.0,0.00027397,2]
[313121700,1706775044461,-640.98652385,0.00027397,2]
[313121702,1706775044471,-548.44,0.00027397,2]
[313121704,1706775044480,-500.0,0.00027397,2]
[313121706,1706775044489,-500.0,0.00027397,2]
[313121708,1706775044499,-500.0,0.00027397,2]
[313121710,1706775044508,-500.0,0.00027397,2]
[313121712,1706775044517,-2692.7,0.00027397,2]
[313121714,1706775044527,-587.91586102,0.00027397,2]
[313121717,1706775044537,-523.56007252,0.00027397,2]
[313121719,1706775044546,-619.51,0.00027397,2]
[313121721,1706775044555,-500.0,0.00027397,2]
[313121723,1706775044564,-500.0,0.00027397,2]
[313121724,1706775044573,-517.37369283,0.00027397,2]
[313121726,1706775044583,-500.0,0.00027397,2]
[313121728,1706775044592,-1120.2,0.00027397,2]
[313121730,1706775044603,-1005.24,0.00027397,2]
[313121731,1706775044613,-500.0,0.00027397,2]
[313121732,1706775044622,-713.71,0.00027397,2]
[313121733,1706775044632,-523.25680525,0.00027397,2]
[313121734,1706775044645,-500.0,0.00027397,2]
[313121735,1706775044655,-3579.61,0.00027397,2]
[313121736,1706775044665,-466.08811002,0.00027397,2]
[313121737,1706775044676,-500.0,0.00027397,2]
[313121738,1706775044686,-500.0,0.00027397,2]
[313121739,1706775044696,-500.0,0.00027397,2]
[313121740,1706775044706,-4458.89,0.00027397,2]
[313121741,1706775044718,-500.0,0.00027397,2]
[313121742,1706775044728,-500.0,0.00027397,2]
[313121743,1706775044739,-500.0,0.00027397,2]
[313121744,1706775044750,-500.0,0.00027397,2]
[313121745,1706775044760,-533.60165876,0.00027397,2]
[313121746,1706775044771,-2636.83,0.00027397,2]
[313121747,1706775044781,-500.0,0.00027397,2]
[313121748,1706775044791,-500.0,0.00027397,2]
[313121749,1706775044801,-500.0,0.00027397,2]
[313121750,1706775044811,-500.0,0.00027397,2]
[313121751,1706775044822,-254.1941785,0.00027397,2]
[313121752,1706775044832,-586.24,0.00027397,2]
[313121753,1706775044842,-500.0,0.00027397,2]
[313121754,1706775044852,-500.0,0.00027397,2]
[313121755,1706775044861,-500.0,0.00027397,2]
[313121756,1706775044871,-500.0,0.00027397,2]
[313121757,1706775044881,-500.0,0.00027397,2]
[313121758,1706775044892,-1417.24,0.00027397,2]
[313121759,1706775044901,-190.40488526,0.00027397,2]
[313121760,1706775044911,-500.0,0.00027397,2]
[313121761,1706775044921,-1108.68,0.00027397,2]
[313121762,1706775044931,-500.0,0.00027397,2]
[313121763,1706775044940,-250.0,0.00027397,2]
[313121764,1706775044950,-500.0,0.00027397,2]
[313121765,1706775044959,-500.0,0.00027397,2]
[313121766,1706775044969,-500.0,0.00027397,2]
[313121767,1706775044979,-942.73,0.00027397,2]
[313121768,1706775044988,-500.0,0.00027397,2]
[313121769,1706775044998,-509.25392895,0.00027397,2]
[313121770,1706775045008,-500.0,0.00027397,2]
[313121771,1706775045017,-500.0,0.00027397,2]
[313121772,1706775045027,-500.0,0.00027397,2]
[313121773,1706775045037,-590.82324621,0.00027397,2]
[313121774,1706775045046,-588.55,0.00027397,2]
[313121775,1706775045056,-714.29,0.00027397,2]
[313121776,1706775045066,-500.0,0.00027397,2]
[313121777,1706775045075,-644.69,0.00027397,2]
[313121778,1706775045085,-500.0,0.00027397,2]
[313121779,1706775045095,-500.0,0.00027397,2]
[313121780,1706775045104,-500.0,0.00027397,2]
[313121781,1706775045115,-500.0,0.00027397,2]
[313121782,1706775045125,-500.0,0.00027397,2]
[313121783,1706775045135,-581.81,0.00027397,2]
[313121784,1706775045145,-500.0,0.00027397,2]
[313121785,1706775045154,-500.0,0.00027397,2]
[313121786,1706775045164,-2731.74,0.00027397,2]
[313121787,1706775045172,-500.0,0.00027397,2]
[313121788,1706775045182,-1237.38,0.00027397,2]
[313121789,1706775045191,-585.02,0.00027397,2]
[313121790,1706775045201,-610.83,0.00027397,2]
[313121791,1706775045212,-500.0,0.00027397,2]
[313121792,1706775045221,-500.0,0.00027397,2]
[313121793,1706775045230,-708.7,0.00027397,2]
[313121794,1706775045239,-1090.5,0.00027397,2]
[313121795,1706775045249,-1000.0,0.00027397,7]
[313121796,1706775045258,-888.24,0.00027397,2]
[313121797,1706775045268,-500.0,0.00027397,2]
[313121798,1706775045278,-1191.27,0.00027397,2]
[313121799,1706775045287,-500.0,0.00027397,2]
[313121800,1706775045297,-575.18,0.00027397,2]
[313121801,1706775045315,-500.0,0.00027397,2]
[313121802,1706775045326,-1665.79,0.00027397,2]
[313121803,1706775045336,-500.0,0.00027397,2]
[313121804,1706775045345,-2857.95,0.00027397,2]
[313121805,1706775045355,-733.39,0.00027397,2]
[313121806,1706775045364,-524.09,0.00027397,2]
[313121807,1706775045373,-573.04,0.00027397,2]
[313121808,1706775045383,-603.17,0.00027397,2]
[313121809,1706775045392,-1246.49,0.00027397,2]
[313121810,1706775045402,-500.0,0.00027397,2]
[313121811,1706775045411,-500.0,0.00027397,2]
[313121812,1706775045420,-500.0,0.00027397,2]
[313121813,1706775045430,-500.0,0.00027397,2]
[313121814,1706775045439,-500.0,0.00027397,2]
[313121815,1706775045448,-1017.7,0.00027397,2]
[313121816,1706775045458,-1016.48445512,0.00027397,7]
[313121817,1706775045468,-500.0,0.00027397,2]
[313121818,1706775045477,-500.0,0.00027397,2]
[313121819,1706775045486,-573.39361345,0.00027397,2]
[313121820,1706775045495,-500.0,0.00027397,2]
[313121821,1706775045506,-500.0,0.00027397,2]
[313121822,1706775045516,-500.0,0.00027397,2]
[313121823,1706775045525,-679.02,0.00027397,2]
[313121824,1706775045534,-500.0,0.00027397,2]
[313121825,1706775045544,-500.0,0.00027397,2]
[313121826,1706775045554,-500.0,0.00027397,2]
[313121827,1706775045563,-500.0,0.00027397,2]
[313121828,1706775045572,-651.98,0.00027397,2]
[313121829,1706775045582,-674.95,0.00027397,2]
[313121830,1706775045591,-211.12290467,0.00027397,2]
[313121831,1706775045600,-2320.17,0.00027397,2]
[313121832,1706775045609,-1238.47,0.00027397,2]
[313121833,1706775045619,-600.61,0.00027397,2]
[313121834,1706775045628,-500.0,0.00027397,2]
[313121835,1706775045638,-723.56,0.00027397,2]
[313121836,1706775045648,-500.0,0.00027397,2]
[313121837,1706775045657,-606.08,0.00027397,2]
[313121838,1706775045667,-687.5,0.00027397,2]
[313121839,1706775045676,-500.0,0.00027397,2]
[313121840,1706775045685,-726.35,0.00027397,2]
[313121841,1706775045695,-500.0,0.00027397,2]
[313121842,1706775045704,-500.0,0.00027397,2]
[313121843,1706775045714,-500.0,0.00027397,2]
[313121844,1706775045724,-1755.46,0.00027397,2]
[313121845,1706775045733,-500.0,0.00027397,2]
[313121846,1706775045742,-500.0,0.00027397,2]
[313121847,1706775045752,-543.34,0.00027397,2]
[313121848,1706775045761,-591.84678949,0.00027397,2]
[313121849,1706775045770,-500.0,0.00027397,2]
[313121850,1706775045780,-1597.3,0.00027397,2]
[313121851,1706775045790,-500.0,0.00027397,2]
[313121852,1706775045800,-512.22,0.00027397,2]
[313121853,1706775045810,-500.0,0.00027397,2]
[313121854,1706775045821,-500.0,0.00027397,2]
[313121855,1706775045831,-716.05,0.00027397,2]
[313121856,1706775045842,-718.59,0.00027397,2]
[313121857,1706775045852,-500.0,0.00027397,2]
[313121858,1706775045862,-1486.63,0.00027397,5]
[313121859,1706775045872,-1115.37,0.00027397,2]
[313121860,1706775045881,-500.0,0.00027397,2]
[313121861,1706775045891,-500.0,0.00027397,2]
[313121862,1706775045901,-16756.36,0.00027397,2]
[313121863,1706775045910,-500.0,0.00027397,2]
[313121864,1706775045920,-500.0,0.00027397,2]
[313121865,1706775045930,-843.96,0.00027397,2]
[313121866,1706775045939,-500.0,0.00027397,2]
[313121867,1706775045949,-519.24,0.00027397,2]
[313121869,1706775045958,-500.0,0.00027397,2]
[313121871,1706775045972,-601.26,0.00027397,2]
[313121873,1706775045983,-500.0,0.00027397,2]
[313121875,1706775045993,-907.28,0.00027397,2]
[313121877,1706775046003,-500.0,0.00027397,2]
[313121879,1706775046012,-500.0,0.00027397,2]
[313121881,1706775046023,-839.88,0.00027397,2]
[313121883,1706775046033,-1300.82,0.00027397,2]
[313121885,1706775046043,-500.0,0.00027397,2]
[313121888,1706775046053,-777.54,0.00027397,2]
[313121890,1706775046062,-500.0,0.00027397,2]
[313121893,1706775046071,-1568.5,0.00027397,2]